fUSD/lending_fUSD_20260115
["ID","MTS","AMOUNT","RATE_DAILY","PERIOD"]
[402092590,1768516261703,-500.0,0.0003589,10]
[402092591,1768516261718,-602.4,0.0003589,10]
[402092592,1768516261734,-1038.06,0.0003589,10]
[402092593,1768516261750,-500.0,0.0003589,10]
[402092594,1768516261765,-563.86,0.0003589,10]
[402092595,1768516261780,-500.0,0.0003589,10]
[402092596,1768516261795,-500.0,0.0003589,10]
[402092597,1768516261811,-500.0,0.0003589,10]
[402092598,1768516261825,-798.98,0.0003589,10]
[402092599,1768516261840,-500.0,0.0003589,10]
[402092600,1768516261855,-500.0,0.0003589,10]
[402092601,1768516261870,-500.0,0.0003589,10]
[402092602,1768516261885,-500.0,0.0003589,10]
[402092603,1768516261901,-500.0,0.0003589,10]
[402092604,1768516261916,-500.0,0.0003589,10]
[402092605,1768516261932,-500.0,0.0003589,10]
[402092606,1768516261947,-500.0,0.0003589,10]
[402092607,1768516261962,-500.0,0.0003589,10]
[402092608,1768516261977,-500.0,0.0003589,10]
[402092609,1768516261992,-500.0,0.0003589,10]
[402092610,1768516262007,-677.77,0.0003589,10]
[402092611,1768516262022,-1000.0,0.0003589,10]
[402092612,1768516262038,-500.0,0.0003589,10]
[402092613,1768516262053,-500.0,0.0003589,10]
[402092614,1768516262069,-557.40136352,0.0003589,10]
[402092615,1768516262084,-200.0,0.0003589,120]
[402092616,1768516262099,-500.0,0.0003589,10]
[402092617,1768516262114,-500.0,0.0003589,10]
[402092618,1768516262130,-750.59,0.0003589,10]
[402092619,1768516262145,-601.3284006,0.0003589,10]
[402092620,1768516262160,-500.0,0.0003589,10]
[402092621,1768516262175,-500.0,0.0003589,10]
[402092622,1768516262189,-500.0,0.0003589,10]
[402092623,1768516262205,-785.26,0.0003589,10]
[402092624,1768516262220,-500.0,0.0003589,10]
[402092625,1768516262236,-500.0,0.0003589,10]
[402092626,1768516262251,-500.0,0.0003589,10]
[402092627,1768516262265,-500.0,0.0003589,10]
[402092628,1768516262279,-639.45,0.0003589,10]
[402092629,1768516262294,-500.0,0.0003589,10]
[402092630,1768516262309,-500.0,0.0003589,10]
[402092632,1768516262324,-500.0,0.0003589,10]
[402092633,1768516262339,-729.17,0.0003589,10]
[402092634,1768516262354,-842.64,0.0003589,10]
[402092635,1768516262371,-561.25920416,0.0003589,10]
[402092636,1768516262387,-691.49,0.0003589,10]
[402092637,1768516262404,-500.0,0.0003589,10]
[402092638,1768516262419,-633.45101718,0.0003589,10]
[402092639,1768516262434,-625.66,0.0003589,10]
[402092640,1768516262450,-503.11,0.0003589,10]
[402092641,1768516262465,-904.1,0.0003589,10]
[402092642,1768516262480,-1634.86,0.0003589,10]
[402092643,1768516262496,-500.0,0.0003589,10]
[402092644,1768516262510,-516.11,0.0003589,10]
[402092645,1768516262525,-684.06,0.0003589,10]
[402092646,1768516262539,-500.0,0.0003589,10]
[402092647,1768516262555,-500.0,0.0003589,10]
[402092648,1768516262569,-500.0,0.0003589,10]
[402092649,1768516262584,-500.0,0.0003589,10]
[402092650,1768516262599,-500.0,0.0003589,10]
[402092651,1768516262614,-500.0,0.0003589,10]
[402092652,1768516262630,-1075.72,0.0003589,10]
[402092653,1768516262644,-500.0,0.0003589,10]
[402092654,1768516262659,-720.53,0.0003589,10]
[402092655,1768516262674,-500.0,0.0003589,10]
[402092656,1768516262691,-500.0,0.0003589,10]
[402092657,1768516262709,-1213.75,0.0003589,10]
[402092658,1768516262720,-500.0,0.0003589,10]
[402092659,1768516262730,-500.0,0.0003589,10]
[402092660,1768516262743,-500.0,0.0003589,10]
[402092661,1768516262752,-759.01,0.0003589,10]
[402092662,1768516262762,-1481.56,0.0003589,10]
[402092663,1768516262773,-531.43509055,0.0003589,10]
[402092664,1768516262782,-500.0,0.0003589,10]
[402092665,1768516262792,-769.69,0.0003589,10]
[402092666,1768516262802,-899.56,0.0003589,10]
[402092667,1768516262812,-500.0,0.0003589,10]
[402092668,1768516262822,-639.25812546,0.0003589,10]
[402092669,1768516262831,-500.0,0.0003589,10]
[402092670,1768516262841,-500.0,0.0003589,10]
[402092671,1768516262851,-855.71,0.0003589,10]
[402092672,1768516262860,-500.0,0.0003589,10]
[402092673,1768516262870,-500.0,0.0003589,10]
[402092674,1768516262880,-500.0,0.0003589,10]
[402092675,1768516262890,-821.07,0.0003589,10]
[402092676,1768516263344,-500.0,0.0003589,10]
[402092677,1768516263375,-500.0,0.0003589,10]
[402092678,1768516263390,-500.0,0.0003589,10]
[402092679,1768516263402,-500.0,0.0003589,10]
[402092680,1768516263412,-500.0,0.0003589,10]
[402092681,1768516263422,-1861.71,0.0003589,10]
[402092682,1768516263431,-300.0,0.0003589,2]
[402092683,1768516263441,-1124.65,0.0003589,10]
[402092684,1768516263451,-500.0,0.0003589,10]
[402092685,1768516263461,-500.0,0.0003589,10]
[402092686,1768516263471,-1073.04,0.0003589,10]
[402092687,1768516263480,-260.39610271,0.0003589,10]
[402092688,1768516264255,-325.15389729,0.0003589,10]
[402092689,1768516264265,-8.10805237,0.0003589,10]
[402092690,1768516265280,-500.0,0.00015693,2]
[402092691,1768516265290,-500.0,0.00015693,2]
[402092692,1768516265300,-500.0,0.00015693,2]
[402092693,1768516265310,-81.65026207,0.00015693,2]
[402092694,1768516265326,-418.34973793,0.00015693,2]
[402092695,1768516265338,-500.0,0.00015693,2]
[402092696,1768516265347,-500.0,0.00015693,2]
[402092697,1768516265357,-500.0,0.00015693,2]
[402092698,1768516265366,-500.0,0.00015693,2]
[402092699,1768516265375,-500.0,0.00015693,2]
[402092700,1768516265384,-500.0,0.00015693,2]
[402092701,1768516265393,-378.46687359,0.00015693,2]
[402092702,1768516265402,-500.0,0.00015693,2]
[402092703,1768516265411,-500.0,0.00015693,2]
[402092704,1768516265420,-500.0,0.00015693,2]
[402092705,1768516265429,-500.0,0.00015693,2]
[402092706,1768516265438,-500.0,0.00015693,2]
[402092707,1768516265447,-500.0,0.00015693,2]
[402092708,1768516265456,-500.0,0.00015693,2]
[402092709,1768516265465,-500.0,0.00015693,2]
[402092710,1768516265474,-500.0,0.00015693,2]
[402092711,1768516265482,-500.0,0.00015693,2]
[402092712,1768516265492,-500.0,0.00015693,2]
[402092713,1768516265501,-500.0,0.00015693,2]
[402092714,1768516265510,-500.0,0.00015693,2]
[402092715,1768516265519,-500.0,0.00015693,2]
[402092716,1768516265528,-500.0,0.00015693,2]
[402092717,1768516265537,-500.0,0.00015693,2]
[402092718,1768516265545,-500.0,0.00015693,2]
[402092719,1768516265554,-500.0,0.00015693,2]
[402092720,1768516265565,-500.0,0.00015693,2]
[402092721,1768516265574,-500.0,0.00015693,2]
[402092722,1768516265583,-500.0,0.00015693,2]
[402092723,1768516265592,-500.0,0.00015693,2]
[402092724,1768516265601,-500.0,0.00015693,2]
[402092725,1768516265610,-500.0,0.00015693,2]
[402092726,1768516265620,-500.0,0.00015693,2]
[402092727,1768516265629,-500.0,0.00015693,2]
[402092728,1768516265639,-500.0,0.00015693,2]
[402092729,1768516265648,-500.0,0.00015693,2]
[402092730,1768516265657,-301.59469304,0.00015693,2]
[402092731,1768516265666,-500.0,0.00015693,2]
[402092732,1768516265675,-500.0,0.00015693,2]
[402092733,1768516265684,-500.0,0.00015693,2]
[402092734,1768516265693,-500.0,0.00015693,2]
[402092735,1768516265703,-440.69297248,0.00015712,2]
[402092736,1768516265713,-189.14605105,0.000179,3]
[402092737,1768516265722,-151.0,0.00018,2]
[402092738,1768516265731,-178.137818,0.00018,2]
[402092739,1768516265740,-594.68,0.00035616,10]
[402092740,1768516265750,-491.89194763,0.0003589,10]
[402092741,1768516265759,-1779.7,0.0003589,10]
[402092742,1768516265770,-1339.16,0.0003589,10]
[402092743,1768516266021,-500.0,0.0003589,10]
[402092744,1768516266057,-500.0,0.0003589,10]
[402092745,1768516266067,-500.0,0.0003589,10]
[402092746,1768516266077,-500.0,0.0003589,10]
[402092747,1768516266086,-847.3,0.0003589,10]
[402092748,1768516266095,-500.0,0.0003589,10]
[402092749,1768516266104,-500.0,0.0003589,10]
[402092750,1768516266113,-500.0,0.0003589,10]
[402092751,1768516266122,-858.76,0.0003589,10]
[402092752,1768516266132,-709.53,0.0003589,10]
[402092753,1768516266141,-1030.73,0.0003589,10]
[402092754,1768516266150,-500.0,0.0003589,10]
[402092755,1768516266159,-989.09,0.0003589,10]
[402092756,1768516266168,-500.0,0.0003589,10]
[402092757,1768516266177,-500.0,0.0003589,10]
[402092758,1768516266186,-739.69,0.0003589,10]
[402092759,1768516266195,-622.54,0.0003589,10]
[402092760,1768516266204,-500.0,0.0003589,10]
[402092761,1768516266214,-662.72,0.0003589,10]
[402092762,1768516266223,-656.67,0.0003589,10]
[402092763,1768516266232,-527.04,0.0003589,10]
[402092764,1768516266242,-1012.62,0.0003589,10]
[402092765,1768516266251,-500.0,0.0003589,10]
[402092766,1768516266260,-558.7,0.0003589,10]
[402092767,1768516266270,-500.0,0.0003589,10]
[402092768,1768516266279,-343.13538796,0.0003589,10]
[402092769,1768516266288,-500.0,0.0003589,10]
[402092770,1768516266297,-523.14071602,0.0003589,10]
[402092771,1768516266307,-500.0,0.0003589,10]
[402092772,1768516266317,-500.0,0.0003589,10]
[402092773,1768516266330,-943.81,0.0003589,10]
[402092774,1768516266339,-1300.99,0.0003589,10]
[402092775,1768516266348,-635.17,0.0003589,10]
[402092776,1768516266357,-500.0,0.0003589,10]
[402092777,1768516266366,-525.65271292,0.0003589,10]
[402092778,1768516266376,-777.59,0.0003589,10]
[402092779,1768516266385,-500.0,0.0003589,10]
[402092780,1768516266394,-530.80757903,0.0003589,10]
[402092781,1768516266404,-500.0,0.0003589,10]
[402092782,1768516266414,-500.0,0.0003589,10]
[402092783,1768516266423,-500.0,0.0003589,10]
[402092784,1768516266432,-1388.9,0.0003589,10]
[402092785,1768516266441,-500.0,0.0003589,10]
[402092786,1768516266450,-811.0,0.0003589,10]
[402092787,1768516266459,-500.0,0.0003589,10]
[402092788,1768516266468,-500.0,0.0003589,120]
[402092789,1768516266477,-500.0,0.0003589,10]
[402092790,1768516266486,-500.0,0.0003589,10]
[402092791,1768516266495,-768.85,0.0003589,10]
[402092792,1768516266504,-500.0,0.0003589,10]
[402092793,1768516266513,-500.0,0.0003589,10]
[402092794,1768516266522,-564.7,0.0003589,10]
[402092795,1768516266532,-1081.0,0.0003589,10]
[402092796,1768516266541,-500.0,0.0003589,10]
[402092797,1768516266550,-743.41,0.0003589,10]
[402092798,1768516266559,-500.0,0.0003589,10]
[402092799,1768516266568,-500.0,0.0003589,10]
[402092800,1768516266577,-942.89,0.0003589,10]
[402092801,1768516266586,-552.29,0.0003589,10]
[402092802,1768516266595,-500.0,0.0003589,10]
[402092803,1768516266604,-1671.05,0.0003589,10]
[402092804,1768516266614,-500.0,0.0003589,10]
[402092805,1768516266623,-500.0,0.0003589,10]
[402092806,1768516266633,-1270.63,0.0003589,10]
[402092807,1768516266642,-500.0,0.0003589,10]
[402092808,1768516266652,-500.0,0.0003589,10]
[402092809,1768516266661,-500.0,0.0003589,10]
[402092810,1768516266670,-500.0,0.0003589,10]
[402092811,1768516266679,-500.0,0.0003589,10]
[402092812,1768516266688,-500.0,0.0003589,10]
[402092813,1768516266697,-500.0,0.0003589,10]
[402092814,1768516266706,-598.55,0.0003589,10]
[402092815,1768516266715,-500.0,0.0003589,10]
[402092816,1768516266725,-1060.76,0.0003589,10]
[402092817,1768516266734,-525.49,0.0003589,10]
[402092818,1768516266744,-341.34642707,0.0003589,10]
[402092819,1768516266753,-911.61,0.0003589,10]
[402092820,1768516266763,-500.0,0.0003589,10]
[402092821,1768516266772,-500.0,0.0003589,10]
[402092822,1768516266782,-1191.05,0.0003589,10]
[402092823,1768516266791,-500.0,0.0003589,10]
[402092824,1768516266801,-287.6862794,0.0003589,10]
[402092825,1768516266811,-1237.13,0.0003589,2]
[402092826,1768516266821,-968.82,0.0003589,10]
[402092827,1768516266830,-1339.49,0.0003589,10]
[402092828,1768516266840,-500.0,0.0003589,10]
[402092829,1768516266849,-500.0,0.0003589,10]
[402092830,1768516266859,-500.0,0.0003589,120]
[402092831,1768516266868,-500.0,0.0003589,10]
[402092832,1768516266878,-1017.29,0.0003589,10]
[402092833,1768516266887,-682.59,0.0003589,10]
[402092834,1768516266896,-500.0,0.0003589,10]
[402092835,1768516266906,-500.0,0.0003589,10]
[402092836,1768516266916,-713.75,0.0003589,10]
[402092837,1768516266925,-613.84,0.0003589,10]
[402092838,1768516266934,-601.57,0.0003589,10]
[402092839,1768516266943,-500.0,0.0003589,10]
[402092840,1768516266953,-1461.43,0.0003589,10]
[402092841,1768516266962,-500.0,0.0003589,10]
[402092842,1768516266972,-577.81429393,0.0003589,10]
[402092843,1768516266981,-500.0,0.0003589,10]
[402092844,1768516266990,-500.0,0.0003589,10]
[402092845,1768516266999,-500.0,0.0003589,10]
[402092846,1768516267010,-500.0,0.0003589,10]
[402092847,1768516267019,-511.85269235,0.0003589,10]
[402092848,1768516267028,-1090.24,0.0003589,10]
[402092849,1768516267039,-500.0,0.0003589,10]
[402092850,1768516267048,-1048.77,0.0003589,10]
[402092851,1768516267058,-500.0,0.0003589,10]
[402092852,1768516267067,-500.0,0.0003589,10]
[402092853,1768516267076,-500.0,0.0003589,10]
[402092854,1768516267085,-500.0,0.0003589,10]
[402092855,1768516267094,-500.0,0.0003589,10]
[402092856,1768516267103,-790.73,0.0003589,10]
[402092857,1768516267112,-508.81,0.0003589,10]
[402092858,1768516267121,-500.0,0.0003589,10]
[402092859,1768516267131,-500.0,0.0003589,10]
[402092860,1768516267140,-541.26,0.0003589,10]
[402092861,1768516267149,-664.74,0.0003589,10]
[402092862,1768516267158,-500.0,0.0003589,10]
[402092863,1768516267167,-1996.77,0.0003589,10]
[402092864,1768516267177,-1206.21,0.0003589,10]
[402092865,1768516267186,-500.0,0.0003589,10]
[402092866,1768516267195,-500.0,0.0003589,10]
[402092867,1768516267204,-500.0,0.0003589,10]
[402092868,1768516267214,-731.91,0.0003589,10]
[402092869,1768516267223,-983.17,0.0003589,10]
[402092870,1768516267232,-702.58,0.0003589,10]
[402092871,1768516267242,-500.0,0.0003589,10]
[402092872,1768516267251,-633.71,0.0003589,10]
[402092873,1768516267260,-500.0,0.0003589,10]
[402092874,1768516267269,-558.98,0.0003589,10]
[402092875,1768516267279,-844.94,0.0003589,10]
[402092876,1768516267288,-500.0,0.0003589,10]
[402092877,1768516267297,-697.57,0.0003589,10]
[402092878,1768516267308,-500.0,0.0003589,10]
[402092879,1768516267317,-501.74,0.0003589,10]
[402092880,1768516267327,-772.92,0.0003589,10]
[402092881,1768516267337,-1549.1,0.0003589,10]
[402092882,1768516267347,-500.0,0.0003589,10]
[402092883,1768516267356,-924.93,0.0003589,10]
[402092884,1768516267367,-500.0,0.0003589,10]
[402092885,1768516267377,-500.0,0.0003589,10]
[402092886,1768516267386,-500.0,0.0003589,10]
[402092887,1768516267396,-558.47,0.0003589,10]
[402092888,1768516267405,-802.1,0.0003589,10]
[402092889,1768516267415,-500.0,0.0003589,10]
[402092890,1768516267424,-500.0,0.0003589,10]
[402092891,1768516267433,-1467.42,0.0003589,10]
[402092892,1768516267443,-500.0,0.0003589,10]
[402092893,1768516267452,-1069.79,0.0003589,10]
[402092894,1768516267461,-500.0,0.0003589,10]
[402092895,1768516267470,-500.0,0.0003589,10]
[402092896,1768516267480,-1425.46,0.0003589,10]
[402092897,1768516267490,-1261.36,0.0003589,10]
[402092898,1768516267499,-715.38,0.0003589,10]
[402092899,1768516267508,-500.0,0.0003589,10]
[402092900,1768516267518,-500.0,0.0003589,10]
[402092901,1768516267527,-500.0,0.0003589,10]
[402092902,1768516267537,-500.0,0.0003589,10]
[402092903,1768516267546,-500.0,0.0003589,10]
[402092904,1768516267557,-500.0,0.0003589,10]
[402092905,1768516267566,-1750.03,0.0003589,10]
[402092906,1768516267575,-564.74599657,0.0003589,10]
[402092907,1768516267589,-484.22913868,0.0003589,10]
[402092908,1768516267599,-500.0,0.0003589,10]
[402092909,1768516267609,-1952.78,0.0003589,10]
[402092910,1768516267619,-1011.61,0.0003589,10]
[402092911,1768516267628,-500.0,0.0003589,10]
[402092912,1768516267637,-500.0,0.0003589,10]
[402092913,1768516267647,-709.89,0.0003589,10]
[402092914,1768516267657,-500.0,0.0003589,10]
[402092915,1768516267667,-500.0,0.0003589,10]
[402092916,1768516267677,-672.31,0.0003589,10]
[402092917,1768516267686,-500.0,0.0003589,10]
[402092918,1768516267696,-524.32286733,0.0003589,10]
[402092919,1768516267708,-1358.31,0.0003589,10]
[402092920,1768516267718,-500.0,0.0003589,10]
[402092921,1768516267727,-500.0,0.0003589,10]
[402092922,1768516267737,-632.3,0.0003589,10]
[402092923,1768516267746,-500.0,0.0003589,10]
[402092924,1768516267755,-500.0,0.0003589,10]
[402092925,1768516267765,-500.0,0.0003589,10]
[402092926,1768516267775,-526.38,0.0003589,10]
[402092927,1768516267784,-1117.0,0.0003589,10]
[402092928,1768516267793,-500.0,0.0003589,10]
[402092929,1768516267803,-986.16,0.0003589,10]
[402092930,1768516267813,-517.91,0.0003589,10]
[402092931,1768516267822,-500.0,0.0003589,10]
[402092932,1768516267832,-500.0,0.0003589,10]
[402092933,1768516267841,-1111.18,0.0003589,10]
[402092934,1768516267851,-541.86,0.0003589,10]
[402092935,1768516267860,-500.0,0.0003589,10]
[402092936,1768516267870,-500.0,0.0003589,10]
[402092937,1768516267880,-689.41,0.0003589,10]
[402092938,1768516267890,-2720.25,0.0003589,10]
[402092939,1768516267899,-500.0,0.0003589,10]
[402092940,1768516267909,-500.0,0.0003589,10]
[402092941,1768516267920,-500.0,0.0003589,10]
[402092942,1768516267929,-500.0,0.0003589,10]
[402092943,1768516267939,-500.0,0.0003589,10]
[402092944,1768516267954,-500.0,0.0003589,10]
[402092945,1768516267964,-502.46,0.0003589,10]
[402092946,1768516267974,-500.0,0.0003589,10]
[402092947,1768516267984,-500.0,0.0003589,10]
[402092948,1768516267994,-1936.89,0.0003589,10]
[402092949,1768516268004,-700.99,0.0003589,10]
[402092950,1768516268018,-500.0,0.0003589,10]
[402092951,1768516268027,-500.0,0.0003589,10]
[402092952,1768516268037,-500.0,0.0003589,10]
[402092953,1768516268046,-274.93672298,0.0003589,10]
[402092954,1768516268056,-551.68,0.0003589,10]
[402092955,1768516268065,-619.75,0.0003589,10]
[402092956,1768516268075,-851.18,0.0003589,10]
[402092957,1768516268085,-500.0,0.0003589,10]
[402092958,1768516268094,-450.80063618,0.0003589,10]
[402092959,1768516268104,-500.0,0.0003589,10]
[402092960,1768516268113,-500.0,0.0003589,10]
[402092961,1768516268123,-765.98,0.0003589,10]
[402092962,1768516268133,-818.62,0.0003589,10]
[402092963,1768516268143,-500.0,0.0003589,10]
[402092964,1768516268152,-500.0,0.0003589,10]
[402092965,1768516268162,-500.0,0.0003589,10]
[402092966,1768516268172,-500.0,0.0003589,10]
[402092967,1768516268181,-500.0,0.0003589,10]
[402092968,1768516268191,-699.44,0.0003589,10]
[402092969,1768516268201,-500.0,0.0003589,10]
[402092970,1768516268211,-500.0,0.0003589,10]
[402092971,1768516268220,-167.425482,0.0003589,10]
[402092972,1768516268230,-500.0,0.0003589,10]
[402092973,1768516268240,-668.01,0.0003589,10]
[402092974,1768516268250,-500.0,0.0003589,10]
[402092975,1768516268260,-500.0,0.0003589,10]
[402092976,1768516268269,-500.0,0.0003589,10]
[402092977,1768516268279,-500.0,0.0003589,10]
[402092978,1768516268288,-500.0,0.0003589,10]
[402092979,1768516268298,-500.0,0.0003589,10]
[402092980,1768516268308,-835.32,0.0003589,10]
[402092981,1768516268322,-500.0,0.0003589,10]
[402092982,1768516268334,-500.0,0.0003589,10]
[402092983,1768516268345,-500.0,0.0003589,10]
[402092984,1768516268354,-500.0,0.0003589,10]
[402092985,1768516268364,-603.42,0.0003589,10]
[402092986,1768516268375,-752.54,0.0003589,10]
[402092987,1768516268384,-921.12,0.0003589,10]
[402092988,1768516268394,-736.66,0.0003589,10]
[402092989,1768516268405,-500.0,0.0003589,10]
[402092990,1768516268415,-500.0,0.0003589,10]
[402092991,1768516268425,-575.86,0.0003589,10]
[402092992,1768516268435,-500.0,0.0003589,10]
[402092993,1768516268445,-1198.8,0.0003589,10]
[402092994,1768516268454,-554.62,0.0003589,10]
[402092995,1768516268464,-500.0,0.0003589,10]
[402092996,1768516268473,-611.94,0.0003589,10]
[402092997,1768516268483,-494.04,0.0003589,10]
[402092998,1768516268492,-1186.91,0.0003589,10]
[402092999,1768516268502,-913.05,0.0003589,10]
[402093000,1768516268511,-522.97,0.0003589,10]
[402093001,1768516268520,-364.11278532,0.0003589,10]
[402093002,1768516268529,-500.0,0.0003589,10]
[402093003,1768516268539,-708.16,0.0003589,10]
[402093004,1768516268548,-500.0,0.0003589,10]
[402093005,1768516268557,-627.85,0.0003589,10]
[402093006,1768516268567,-629.85,0.0003589,10]
[402093007,1768516268577,-500.0,0.0003589,10]
[402093008,1768516268586,-500.0,0.0003589,10]
[402093009,1768516268596,-1522.31,0.0003589,10]
[402093010,1768516268606,-500.0,0.0003589,10]
[402093011,1768516268615,-500.0,0.0003589,10]
[402093012,1768516268625,-500.0,0.0003589,10]
[402093013,1768516268635,-500.0,0.0003589,10]
[402093014,1768516268645,-500.0,0.0003589,10]
[402093015,1768516268655,-500.0,0.0003589,10]
[402093016,1768516268664,-1470.18,0.0003589,10]
[402093017,1768516268674,-557.52,0.0003589,10]
[402093018,1768516268687,-500.0,0.0003589,10]
[402093019,1768516268697,-500.0,0.0003589,10]
[402093020,1768516268707,-236.5071526,0.0003589,10]
[402093021,1768516268717,-500.0,0.0003589,10]
[402093022,1768516268727,-1294.66,0.0003589,10]
[402093023,1768516268737,-500.0,0.0003589,10]
[402093024,1768516268747,-500.0,0.0003589,10]
[402093025,1768516268757,-775.37,0.0003589,10]
[402093026,1768516268766,-500.0,0.0003589,10]
[402093027,1768516268776,-649.39,0.0003589,10]
[402093028,1768516268785,-1275.92,0.0003589,10]
[402093029,1768516268795,-1196.03,0.0003589,10]
[402093030,1768516268805,-740.07,0.0003589,10]
[402093031,1768516268814,-835.09,0.0003589,10]
[402093032,1768516268824,-500.0,0.0003589,10]
[402093033,1768516268834,-500.0,0.0003589,10]
[402093034,1768516268843,-760.16,0.0003589,10]
[402093035,1768516268853,-512.52,0.0003589,10]
[402093036,1768516268862,-328.33121556,0.0003589,5]
[402093037,1768516269049,500.0,0.00015593,2]
[402093038,1768516269069,-171.66878444,0.0003589,5]
[402093039,1768516269081,-1128.83,0.0003589,10]
[402093040,1768516269091,-500.0,0.0003589,10]
[402093041,1768516269101,-500.0,0.0003589,10]
[402093042,1768516269110,-500.0,0.0003589,10]
[402093043,1768516269120,-500.0,0.0003589,10]
[402093044,1768516269129,-738.74,0.0003589,10]
[402093045,1768516269139,-970.63,0.0003589,10]
[402093046,1768516269148,-500.0,0.0003589,10]
[402093047,1768516269158,-151.0,0.0003589,31]
[402093048,1768516269168,-151.0,0.0003589,31]
[402093049,1768516269178,-500.0,0.0003589,10]
[402093050,1768516269187,-500.0,0.0003589,10]
[402093051,1768516269196,-1062.05,0.0003589,10]
[402093052,1768516269206,-500.0,0.0003589,10]
[402093053,1768516269215,-2208.42,0.0003589,10]
[402093054,1768516269225,-500.0,0.0003589,10]
[402093055,1768516269235,-500.0,0.0003589,10]
[402093056,1768516269244,-582.15964455,0.0003589,10]
[402093057,1768516269253,-329.61396523,0.0003589,10]
[402093058,1768516269263,-500.0,0.0003589,10]
[402093059,1768516269272,-500.0,0.0003589,10]
[402093060,1768516269281,-500.0,0.0003589,10]
[402093061,1768516269291,-500.0,0.0003589,10]
[402093062,1768516269300,-464.13524873,0.0003589,10]
[402093063,1768516269314,-35.86475127,0.0003589,10]
[402093064,1768516269324,-500.0,0.0003589,10]
[402093065,1768516269335,-500.0,0.0003589,10]
[402093066,1768516269345,-500.0,0.0003589,10]
[402093067,1768516269354,-1369.09,0.0003589,10]
[402093068,1768516269363,-785.06,0.0003589,10]
[402093069,1768516269374,-500.0,0.0003589,10]
[402093070,1768516269383,-500.0,0.0003589,10]
[402093071,1768516269392,-660.64,0.0003589,10]
[402093072,1768516269403,-774.47,0.0003589,10]
[402093073,1768516269415,-500.0,0.0003589,10]
[402093074,1768516269424,-500.0,0.0003589,10]
[402093075,1768516269436,-581.08,0.0003589,10]
[402093076,1768516269447,-220.44648373,0.0003589,10]
[402093077,1768516269756,-769.44351627,0.0003589,10]
[402093078,1768516269766,-500.0,0.0003589,10]
[402093079,1768516269775,-699.97,0.0003589,10]
[402093080,1768516269784,-500.0,0.0003589,10]
[402093081,1768516269794,-846.34,0.0003589,10]
[402093082,1768516269802,-500.0,0.0003589,10]
[402093083,1768516269812,-976.8994411,0.0003589,10]
[402093084,1768516269827,-363.7805589,0.0003589,10]
[402093085,1768516269837,-175.66460863,0.0003589,10]
[402093086,1768516269923,-978.26568528,0.0003589,10]
[402093087,1768516269935,-212.25970609,0.0003589,10]
[402093088,1768516269945,-786.64665501,0.0003589,10]
[402093089,1768516270025,500.0,0.00015593,2]
[402093090,1768516270447,500.0,0.00015593,2]